bitfinex/quotes_BTCUSD_20230114
["timestamp","ask_amount","ask_price","bid_price","bid_amount"]
[1673662569398,0.23760015,20988.0,20987.0,0.001]
[1673662569671,0.476464,20988.0,20987.0,0.001]
[1673662569934,0.760311,20988.0,20987.0,0.001]
[1673662570184,0.80792386,20988.0,20987.0,0.001]
[1673662570426,1.48714535,20988.0,20987.0,0.001]
[1673662571215,0.283847,20988.0,20987.0,0.05703]
[1673662571464,0.283847,20988.0,20987.0,0.32809305]
[1673662571975,0.25003626,20990.0,20987.0,0.32809305]
[1673662572225,0.04839597,20992.0,20987.0,0.0861311]
[1673662572478,0.27961548,20992.0,20987.0,0.29786717]
[1673662572735,0.27961548,20992.0,20987.0,0.05703]
[1673662572986,0.04839597,20992.0,20987.0,0.05703]
[1673662573242,0.23912192,20992.0,20988.0,0.005703]
[1673662573491,0.19072595,20992.0,20988.0,0.20973838]
[1673662573733,0.30024383,20993.0,20988.0,0.005703]
[1673662574227,0.23625336,20991.0,20987.0,0.001]
[1673662574474,1.90383595,20990.0,20987.0,0.001]
[1673662574722,1.61998895,20990.0,20987.0,0.001]
[1673662574970,0.47457295,20989.0,20987.0,0.001]
[1673662575212,1.152924,20988.0,20987.0,0.001]
[1673662575459,1.436771,20988.0,20987.0,0.001]
[1673662575706,1.62749695,20988.0,20987.0,0.001]
[1673662575951,0.2,20987.0,20977.0,0.02]
[1673662576196,0.2,20987.0,20971.0,0.47683]
[1673662576197,1.477199,20984.0,20974.0,0.1895]
[1673662576443,1.477199,20984.0,20976.0,0.26347053]
[1673662576444,0.85768557,20983.0,20976.0,0.26347053]
[1673662576689,0.19072595,20982.0,20976.0,0.26347053]
[1673662576934,1.90444195,20981.0,20976.0,0.28981758]
[1673662577182,0.39072595,20980.0,20967.0,0.476937]
[1673662577428,1.430184,20977.0,20974.0,0.20231936]
[1673662577671,0.476623,20981.0,20975.0,0.02023194]
[1673662577923,0.52514108,20980.0,20979.0,0.24020636]
[1673662578172,0.80898808,20980.0,20978.0,0.25058956]
[1673662578421,0.953262,20981.0,20980.0,0.22013845]
[1673662578422,0.71400371,20981.0,20980.0,0.22013845]
[1673662578675,0.71400371,20981.0,20973.0,0.21094723]
[1673662578676,1.76183269,20981.0,20973.0,0.21094723]
[1673662578916,1.33488726,20980.0,20973.0,0.21094723]
[1673662579160,0.04754,20977.0,20970.0,0.26661385]
[1673662579421,0.04754,20977.0,20970.0,0.04562045]
[1673662579422,0.04754,20974.0,20970.0,0.04562045]
[1673662579664,0.001,20972.0,20969.0,0.19155947]
[1673662579906,1.42826895,20971.0,20969.0,0.19155947]
[1673662580148,1.14442195,20971.0,20969.0,0.19155947]
[1673662580391,1.14442195,20971.0,20965.0,0.18765]
[1673662580392,0.283847,20970.0,20965.0,0.18765]
[1673662580654,0.47688,20970.0,20969.0,0.23010951]
[1673662580979,1.59026395,20970.0,20957.0,0.18795]
[1673662581223,1.59026395,20970.0,20957.0,0.16744]
[1673662581224,0.58311262,20969.0,20957.0,0.16744]
[1673662581475,1.478468,20966.0,20958.0,0.016744]
[1673662581726,1.05104026,20965.0,20958.0,0.25633309]
[1673662581987,0.04351,20959.0,20958.0,0.25633309]
[1673662582234,1.18847995,20959.0,20950.0,0.2]
[1673662582480,0.47457295,20958.0,20951.0,0.02]
[1673662582727,0.19072595,20957.0,20956.0,0.18951157]
[1673662582972,0.483847,20957.0,20956.0,0.18951157]
[1673662583228,0.483847,20957.0,20951.0,0.02]
[1673662583229,1.15177464,20957.0,20954.0,0.25908107]
[1673662583480,0.43826595,20957.0,20955.0,0.24259068]
[1673662583724,0.43826595,20957.0,20951.0,0.019102]
[1673662583725,0.761037,20956.0,20951.0,0.019102]
[1673662583974,0.2,20954.0,20952.0,0.24395803]
[1673662584238,0.283847,20953.0,20952.0,0.27026403]
[1673662584486,0.283847,20953.0,20952.0,0.026306]
[1673662584730,0.04779162,20957.0,20951.0,0.019102]
[1673662584986,0.02394421,20953.0,20952.0,0.26303115]
[1673662585236,0.30779121,20953.0,20952.0,0.26303115]
[1673662585485,0.30779121,20953.0,20951.0,0.019102]
[1673662585729,0.02394421,20953.0,20952.0,0.21093543]
[1673662585972,0.30879121,20953.0,20952.0,0.21093543]
[1673662586220,0.30879121,20953.0,20951.0,0.019102]
[1673662586465,0.02494421,20953.0,20952.0,0.23423537]
[1673662586969,0.30879121,20953.0,20952.0,0.23423537]
[1673662587955,0.30779121,20953.0,20952.0,0.23423537]
[1673662588210,0.30779121,20953.0,20951.0,0.019102]
[1673662588455,0.02394421,20953.0,20951.0,0.019102]
[1673662588944,0.001,20956.0,20951.0,0.49630369]
[1673662589194,0.001,20956.0,20952.0,0.41547427]
[1673662589438,0.001,20956.0,20953.0,0.954508]
[1673662589690,0.001,20956.0,20954.0,0.25035]
[1673662589933,0.04836312,20962.0,20955.0,0.677213]
[1673662590177,0.04836312,20962.0,20956.0,0.250323]
[1673662590421,0.04836312,20962.0,20957.0,0.0927536]
[1673662591199,0.45537939,20962.0,20957.0,0.0927536]
[1673662591448,0.202244,20959.0,20953.0,0.477248]
[1673662591705,0.19072595,20958.0,20953.0,0.477248]
[1673662591952,0.19072595,20957.0,20954.0,0.11196153]
[1673662592202,0.19072595,20957.0,20954.0,0.35486745]
[1673662592456,0.04764234,20958.0,20954.0,0.11196153]
[1673662592707,0.04764234,20958.0,20954.0,0.58919353]
[1673662593206,0.04764234,20958.0,20955.0,0.250333]
[1673662593446,0.001,20960.0,20956.0,0.56114265]
[1673662593695,0.001,20960.0,20957.0,0.250307]
[1673662593943,0.001,20960.0,20957.0,0.477166]
[1673662594204,0.19072595,20959.0,20952.0,0.16509427]
[1673662594476,0.954338,20957.0,20951.0,0.019102]
[1673662594722,0.47457295,20956.0,20952.0,0.26252929]
[1673662594968,0.86794295,20955.0,20952.0,0.26252929]
[1673662595215,0.86794295,20955.0,20951.0,0.019102]
[1673662595216,0.47457295,20954.0,20951.0,0.019102]
[1673662595475,2.09970164,20953.0,20951.0,0.019102]
[1673662595725,0.283847,20952.0,20951.0,0.019102]
[1673662595973,0.28375437,20952.0,20951.0,0.019102]
[1673662596710,0.28375437,20952.0,20951.0,0.23121952]
[1673662596967,0.28375437,20952.0,20951.0,0.019102]
[1673662597717,0.28375437,20952.0,20947.0,0.0115608]
[1673662597718,0.76095606,20952.0,20947.0,0.0115608]
[1673662597960,0.76095606,20952.0,20947.0,0.2735963]
[1673662597961,1.48647414,20951.0,20947.0,0.2735963]
[1673662598210,0.283737,20950.0,20947.0,0.2735963]
[1673662598464,0.2,20949.0,20947.0,0.2735963]
[1673662598714,0.283737,20948.0,20947.0,0.25227061]
[1673662598984,0.47446295,20948.0,20947.0,0.0115608]
[1673662599270,0.283737,20948.0,20947.0,0.0115608]
[1673662599515,1.14341435,20948.0,20947.0,0.0115608]
[1673662599757,1.1526884,20948.0,20947.0,0.0115608]
[1673662600003,1.6507042,20948.0,20947.0,6.08e-05]
[1673662600256,1.6507042,20948.0,20944.0,0.01105422]
[1673662600257,0.2,20947.0,20944.0,0.01105422]
[1673662600504,1.90945569,20946.0,20944.0,0.01105422]
[1673662600747,0.2,20944.0,20941.0,0.01181027]
[1673662600987,1.14569795,20943.0,20941.0,0.21411691]
[1673662601239,1.14569795,20943.0,20936.0,0.17855]
[1673662601240,0.283737,20942.0,20939.0,0.22166145]
[1673662601491,0.66825795,20941.0,20939.0,0.22166145]
[1673662601749,0.86825795,20941.0,20940.0,0.20397958]
[1673662602009,0.961269,20941.0,20932.0,0.2]
[1673662602294,0.17883408,20940.0,20939.0,0.019114]
[1673662602547,0.762291,20940.0,20939.0,0.019114]
[1673662603809,0.962291,20940.0,20939.0,0.019114]
[1673662604599,0.961291,20940.0,20939.0,0.019114]
[1673662605324,1.67498399,20940.0,20939.0,0.019114]
[1673662605576,1.43849269,20940.0,20939.0,0.019114]
[1673662606086,1.43849269,20940.0,20932.0,0.03074819]
[1673662606087,0.2,20939.0,20932.0,0.25914065]
[1673662606356,1.432875,20937.0,20926.0,0.477862]
[1673662606609,0.001,20935.0,20932.0,0.01105422]
[1673662606865,0.955382,20934.0,20933.0,0.25846285]
[1673662607113,1.239119,20934.0,20932.0,0.03017422]
[1673662607365,1.84430283,20934.0,20932.0,0.03017422]
[1673662607609,0.283737,20933.0,20932.0,0.03017422]
[1673662607863,0.961451,20933.0,20932.0,0.03017422]
[1673662608130,1.43865269,20933.0,20932.0,0.03017422]
[1673662608379,1.73928035,20933.0,20932.0,0.03017422]
[1673662608637,1.82152475,20933.0,20932.0,0.03017422]
[1673662608883,1.65574535,20933.0,20927.0,0.25476287]
[1673662609140,1.2507997,20932.0,20927.0,0.25476287]
[1673662609391,1.2507997,20932.0,20928.0,0.26306812]
[1673662609392,2.38497664,20931.0,20928.0,0.26306812]
[1673662609635,0.2,20930.0,20924.0,0.1335322]
[1673662609882,0.95227895,20929.0,20927.0,0.019124]
[1673662610124,0.477816,20929.0,20927.0,0.019124]
[1673662610374,0.283737,20928.0,20927.0,0.019124]
[1673662610620,0.961565,20928.0,20927.0,0.019124]
[1673662611355,0.761565,20928.0,20927.0,0.019124]
[1673662611620,0.961565,20928.0,20927.0,0.019124]
[1673662612114,1.69826619,20928.0,20927.0,0.019124]
[1673662612602,0.44046399,20927.0,20925.0,0.01189187]
[1673662612851,0.001,20926.0,20925.0,0.06792187]
[1673662613096,0.284737,20926.0,20925.0,0.01189187]
[1673662613364,0.04351,20926.0,20925.0,0.01189187]
[1673662613604,0.327247,20926.0,20925.0,0.27056981]
[1673662613857,0.327247,20926.0,20925.0,0.28969381]
[1673662614103,0.99517464,20926.0,20925.0,0.03101587]
[1673662614350,0.2,20925.0,20920.0,0.19751479]
[1673662614594,0.57359801,20925.0,20921.0,0.01975148]
[1673662614847,0.19072595,20926.0,20925.0,0.19866393]
[1673662615097,0.283737,20926.0,20922.0,0.18124]
[1673662615352,0.70226909,20927.0,20925.0,0.25264229]
[1673662615594,0.283737,20926.0,20925.0,0.25264229]
[1673662616572,0.283737,20926.0,20921.0,0.03074819]
[1673662616573,0.76093869,20926.0,20921.0,0.03074819]
[1673662616847,0.1144,20923.0,20920.0,0.01346884]
[1673662617095,2.14936264,20922.0,20920.0,0.01346884]
[1673662617339,1.15166464,20921.0,20920.0,6.884e-05]
[1673662617591,0.2,20920.0,20916.0,0.22726648]
[1673662617858,0.95166464,20919.0,20918.0,0.019136]
[1673662618110,1.29259363,20919.0,20918.0,0.019136]
[1673662618617,1.49259363,20919.0,20918.0,3.6e-05]
[1673662618857,0.2,20918.0,20915.0,0.39116517]
[1673662619102,0.47720169,20917.0,20915.0,0.2]
[1673662619350,1.71714269,20916.0,20915.0,0.2]
[1673662619601,0.2,20915.0,20914.0,0.01361951]
[1673662619848,1.34605264,20915.0,20914.0,0.03275851]
[1673662620094,1.7945339,20915.0,20914.0,0.02775851]
[1673662620335,2.08960769,20915.0,20914.0,0.02775851]
[1673662620602,0.2,20914.0,20904.0,0.00972]
[1673662620856,0.04754,20909.0,20906.0,0.08989923]
[1673662621107,0.04754,20909.0,20904.0,0.00972]
[1673662621108,0.001,20909.0,20904.0,0.60972]
[1673662621364,0.17672595,20909.0,20906.0,0.47832]
[1673662621609,0.04953496,20911.0,20907.0,0.84574818]
[1673662621861,0.04953496,20911.0,20910.0,0.6]
[1673662622123,6e-05,20919.0,20911.0,0.2]
[1673662622398,6e-05,20919.0,20915.0,0.6]
[1673662622641,6e-05,20919.0,20916.0,1.68004418]
[1673662622891,6e-05,20919.0,20917.0,0.29672118]
[1673662623154,6e-05,20919.0,20916.0,0.678098]
[1673662623155,0.01759165,20918.0,20916.0,0.678098]
[1673662623400,0.01759165,20918.0,20917.0,0.90761566]
[1673662623647,9.165e-05,20918.0,20917.0,1.15336384]
[1673662623891,0.04782769,20925.0,20918.0,0.20009]
[1673662624134,2.5,20930.0,20924.0,0.6]
[1673662624374,2.5,20930.0,20925.0,1.31237318]
[1673662624650,2.5,20930.0,20926.0,0.49658518]
[1673662624909,2.5,20930.0,20927.0,0.29657118]
[1673662625151,2.5,20930.0,20928.0,0.25081]
[1673662625426,2.5,20930.0,20924.0,0.00096791]
[1673662625682,0.92446295,20929.0,20924.0,0.26842903]
[1673662625981,0.19072595,20928.0,20924.0,0.00096791]
[1673662626186,0.47446295,20927.0,20924.0,0.00096791]
[1673662626434,0.19072595,20927.0,20924.0,0.00096791]
[1673662626679,0.283737,20926.0,20924.0,0.00096791]
[1673662626976,0.19072595,20926.0,20917.0,0.17857766]
[1673662627233,1.33178002,20925.0,20917.0,0.17622]
[1673662627471,0.2,20923.0,20913.0,1.0566]
[1673662627721,0.2,20923.0,20917.0,0.21756867]
[1673662627722,1.33254533,20922.0,20917.0,0.21756867]
[1673662627969,1.33254533,20922.0,20914.0,0.17622]
[1673662627970,0.47446295,20921.0,20914.0,0.17622]
[1673662628217,0.19072595,20920.0,20915.0,0.21477469]
[1673662628480,0.2,20918.0,20911.0,0.01346884]
[1673662628729,0.478105,20916.0,20912.0,0.2432679]
[1673662628970,0.47446295,20915.0,20912.0,0.2432679]
[1673662629226,0.19072595,20914.0,20912.0,0.2432679]
[1673662629487,0.283737,20913.0,20911.0,0.01442926]
[1673662629758,0.283737,20912.0,20911.0,0.27425912]
[1673662630006,0.283737,20912.0,20911.0,0.01346884]
[1673662630255,0.283737,20912.0,20911.0,0.2660755]
[1673662630498,0.283737,20912.0,20911.0,0.01346884]
[1673662630752,0.478086,20917.0,20911.0,0.05921702]
[1673662630998,0.70706765,20920.0,20912.0,0.29679618]
[1673662631235,0.22903665,20920.0,20913.0,0.32780468]
[1673662631482,0.22903665,20920.0,20914.0,0.04574818]
[1673662631744,0.477909,20925.0,20915.0,0.04574818]
[1673662631994,0.52547386,20927.0,20916.0,0.77481918]
[1673662631995,0.01493216,20919.0,20916.0,0.77481918]
[1673662632239,0.01493216,20919.0,20917.0,0.250966]
[1673662632500,0.01493216,20919.0,20917.0,0.0784563]
[1673662632751,0.01493216,20919.0,20914.0,0.478135]
[1673662632752,0.21210109,20919.0,20914.0,0.478135]
[1673662633009,0.21857515,20912.0,20911.0,0.01346884]
[1673662633277,0.51158495,20912.0,20911.0,0.01346884]
[1673662633526,0.77509898,20912.0,20911.0,0.01346884]
[1673662634025,0.58437303,20912.0,20911.0,0.01346884]
[1673662634761,0.54902618,20912.0,20911.0,0.01346884]
[1673662635002,0.320859,20912.0,20911.0,0.01346884]
[1673662635257,0.79806069,20912.0,20911.0,0.01346884]
[1673662635503,1.74426736,20912.0,20911.0,0.01346884]
[1673662635747,1.47625469,20912.0,20911.0,0.01346884]
[1673662636242,0.999053,20912.0,20911.0,0.01346884]
[1673662636529,1.51879469,20912.0,20911.0,0.01346884]
[1673662637534,1.73032876,20912.0,20911.0,0.01346884]
[1673662637804,1.51879469,20912.0,20911.0,0.01346884]
[1673662638044,1.93769835,20912.0,20911.0,0.01346884]
[1673662638537,1.58121287,20912.0,20911.0,0.01346884]
[1673662638811,1.58121287,20912.0,20911.0,6.884e-05]
[1673662639061,1.58121287,20912.0,20906.0,0.00096423]
[1673662639062,0.2,20911.0,20906.0,0.00096423]
[1673662639304,0.04754,20907.0,20906.0,0.00096423]
[1673662639549,2.27552369,20907.0,20906.0,0.00096423]
[1673662639824,2.22798369,20907.0,20905.0,0.01361951]
[1673662640070,0.88175664,20906.0,20905.0,1.951e-05]
[1673662640330,0.195,20905.0,20904.0,0.01807619]
[1673662640584,2.42312169,20905.0,20904.0,0.01807619]
[1673662641582,2.69018786,20905.0,20904.0,0.01807619]
[1673662641826,0.41742136,20904.0,20902.0,0.019149]
[1673662642087,2.69018786,20905.0,20902.0,0.06489718]
[1673662642088,0.213829,20903.0,20902.0,0.06489718]
[1673662642333,0.69036839,20907.0,20903.0,0.25555402]
[1673662642580,0.478245,20910.0,20904.0,0.04574818]
[1673662642822,0.47720169,20906.0,20903.0,0.25600462]
[1673662643071,0.799218,20905.0,20903.0,0.25600462]
[1673662643317,0.408823,20904.0,20903.0,0.25100462]
[1673662643566,0.208823,20904.0,20902.0,0.019149]
[1673662643816,0.320864,20903.0,20902.0,0.2944806]
[1673662644067,6e-05,20905.0,20903.0,0.18894738]
[1673662644307,6e-05,20905.0,20904.0,0.2]
[1673662645304,6e-05,20905.0,20904.0,0.20009471]
[1673662645568,6e-05,20905.0,20904.0,9.471e-05]
[1673662645820,0.320924,20905.0,20902.0,0.23898875]
[1673662646071,0.208823,20904.0,20903.0,0.21297007]
[1673662646317,6e-05,20905.0,20903.0,0.50229587]
[1673662646570,2.5,20910.0,20904.0,0.23574818]
[1673662646821,2.5,20910.0,20905.0,2.16590059]
[1673662647064,2.5,20910.0,20906.0,0.04574818]
[1673662647311,2.5,20910.0,20907.0,1.00235618]
[1673662647814,1.9805,20910.0,20908.0,0.6]
[1673662648059,0.01454185,20909.0,20908.0,0.24574818]
[1673662648307,0.01454185,20909.0,20908.0,1.15657]
[1673662648568,0.01454185,20909.0,20908.0,1.75657]
[1673662649063,0.01454185,20909.0,20905.0,0.25291946]
[1673662649064,1.08659887,20909.0,20905.0,0.21079752]
[1673662649323,0.51158995,20908.0,20893.0,0.622799]
[1673662649574,0.51158995,20908.0,20891.0,0.42528609]
[1673662649575,0.47720169,20896.0,20891.0,0.42528609]
[1673662649820,0.47720169,20896.0,20885.0,0.004]
[1673662649821,0.957177,20895.0,20893.0,0.019153]
[1673662650066,0.51158995,20894.0,20893.0,0.019153]
[1673662650332,0.478494,20899.0,20893.0,0.019153]
[1673662650575,0.19072595,20897.0,20893.0,0.23345889]
[1673662650824,0.320864,20896.0,20893.0,0.06490118]
[1673662651066,0.478411,20903.0,20893.0,0.06490118]
[1673662651316,0.16661,20901.0,20894.0,0.22731997]
[1673662651567,0.478494,20899.0,20894.0,0.22075642]
[1673662651825,0.208823,20898.0,20894.0,0.04574818]
[1673662652080,0.320864,20897.0,20894.0,0.14408626]
[1673662652328,0.408823,20896.0,20894.0,0.14408626]
[1673662652618,0.98879164,20895.0,20885.0,0.004]
[1673662652864,1.63568,20896.0,20891.0,0.00098821]
[1673662652865,0.87675064,20894.0,20891.0,0.00098821]
[1673662653114,0.478494,20899.0,20891.0,0.04574818]
[1673662653361,0.67273561,20901.0,20891.0,0.04574818]
[1673662653362,0.24658415,20901.0,20891.0,0.04574818]
[1673662653610,0.19072595,20901.0,20892.0,0.04574818]
[1673662653855,0.01431007,20902.0,20893.0,0.64074818]
[1673662654099,0.01431007,20902.0,20896.0,0.1144]
[1673662654362,0.01431007,20902.0,20897.0,0.23074818]
[1673662654600,0.01431007,20902.0,20898.0,0.04074818]
[1673662654857,0.01431007,20902.0,20899.0,0.04074818]
[1673662655105,0.9264345,20910.0,20900.0,0.04074818]
[1673662655352,0.71200936,20910.0,20901.0,0.04074818]
[1673662655614,0.19072595,20909.0,20902.0,0.04074818]
[1673662655861,0.20871513,20906.0,20903.0,0.04074818]
[1673662656114,0.320864,20905.0,20900.0,0.17023188]
[1673662656362,0.320864,20905.0,20901.0,0.01702319]
[1673662656363,0.19072595,20905.0,20901.0,0.01702319]
[1673662656624,0.44760581,20909.0,20902.0,0.015037]
[1673662656872,0.19072595,20909.0,20903.0,0.04074818]
[1673662657130,0.2,20908.0,20904.0,0.04074818]
[1673662657624,9.471e-05,20907.0,20901.0,0.18642319]
[1673662657887,9.471e-05,20907.0,20902.0,0.03759627]
[1673662657888,0.19072595,20906.0,20902.0,0.03759627]
[1673662658135,0.19072595,20906.0,20900.0,0.00097188]
[1673662658136,0.71159395,20905.0,20900.0,0.00097188]
[1673662658376,0.19072595,20904.0,20900.0,0.03376605]
[1673662658625,0.51159395,20903.0,20900.0,0.03376605]
[1673662658866,0.86674664,20902.0,20895.0,0.00098842]
[1673662659113,1.34639264,20901.0,20895.0,0.00098842]
[1673662659357,0.98879564,20900.0,20895.0,0.00098842]
[1673662659614,0.86804095,20899.0,20895.0,0.00098842]
[1673662659851,0.86804095,20899.0,20893.0,0.03218326]
[1673662659852,0.32096271,20898.0,20893.0,0.03218326]
[1673662660110,0.38954495,20897.0,20893.0,0.03218326]
[1673662660373,9.471e-05,20898.0,20893.0,0.04074818]
[1673662660620,0.40143166,20903.0,20894.0,0.05581218]
[1673662660876,0.45207754,20902.0,20895.0,0.0463294]
[1673662661138,0.45207754,20902.0,20896.0,0.05580118]
[1673662661382,0.45207754,20902.0,20896.0,0.04074818]
[1673662661623,0.45207754,20902.0,20897.0,0.04074818]
[1673662661866,1.07978766,20905.0,20898.0,0.04074818]
[1673662662118,1.07978766,20905.0,20899.0,0.04074818]
[1673662662119,0.23157443,20905.0,20899.0,0.04074818]
[1673662662365,0.23157443,20905.0,20896.0,0.2]
[1673662662366,0.20610694,20907.0,20900.0,0.04074818]
[1673662662609,0.20610694,20907.0,20901.0,0.04074818]
[1673662662817,0.20610694,20907.0,20902.0,0.04074818]
[1673662662818,0.25105001,20906.0,20902.0,0.04074818]
[1673662663098,0.320868,20905.0,20902.0,0.04074818]
[1673662663339,0.320868,20905.0,20897.0,0.03878165]
[1673662663340,0.21619597,20901.0,20897.0,0.03878165]
[1673662663595,0.51159395,20900.0,20899.0,0.00095081]
[1673662663847,0.51159395,20900.0,20896.0,0.01788226]
[1673662663848,0.320868,20900.0,20898.0,0.04779981]
[1673662664107,0.198819,20899.0,20898.0,0.04779981]
[1673662664355,0.198819,20899.0,20896.0,0.00099155]
[1673662664599,0.320868,20898.0,20897.0,0.04495666]
[1673662664841,0.25388513,20900.0,20897.0,0.04495666]
[1673662665329,0.32096271,20899.0,20897.0,0.04495666]
[1673662665578,0.198819,20898.0,20893.0,0.00099394]
[1673662665831,9.471e-05,20899.0,20897.0,0.04154722]
[1673662666074,0.25388513,20900.0,20897.0,0.04154722]
[1673662666346,1.32907669,20903.0,20893.0,0.34242493]
[1673662666347,0.95560669,20903.0,20893.0,0.34242493]
[1673662666588,0.20648948,20904.0,20899.0,0.001]
[1673662666589,0.00648948,20904.0,20899.0,0.001]
[1673662666825,0.21581485,20903.0,20895.0,0.2]
[1673662667068,0.19072595,20902.0,20896.0,0.04074818]
[1673662667326,0.00648948,20904.0,20897.0,0.05579318]
[1673662667578,0.00648948,20904.0,20898.0,0.04074818]
[1673662667818,0.00648948,20904.0,20899.0,0.05579318]
[1673662668068,0.00648948,20904.0,20900.0,0.04074818]
[1673662668316,0.22113322,20903.0,20898.0,0.13992458]
[1673662668573,0.41185917,20903.0,20898.0,0.18067276]
[1673662668820,0.19072595,20903.0,20898.0,0.04074818]
[1673662669084,0.00648948,20904.0,20898.0,0.04074818]
[1673662669085,0.00648948,20904.0,20899.0,0.04074818]
[1673662669338,0.00648948,20904.0,20900.0,0.99766818]
[1673662669577,0.00648948,20904.0,20901.0,0.11480682]
[1673662669821,0.00648948,20904.0,20901.0,0.618949]
[1673662670087,0.00648948,20904.0,20902.0,0.215037]
[1673662670373,0.00648948,20904.0,20902.0,0.03688885]
[1673662670617,0.00648948,20904.0,20903.0,0.015034]
[1673662670861,0.00648948,20904.0,20900.0,0.478463]
[1673662671114,8.948e-05,20904.0,20903.0,0.5921]
[1673662671358,0.71200936,20910.0,20904.0,0.2]
[1673662671612,0.71200936,20910.0,20905.0,1.47747661]
[1673662671854,0.71200936,20910.0,20906.0,0.04074818]
[1673662672105,0.71200936,20910.0,20907.0,0.99735618]
[1673662672350,0.71200936,20910.0,20908.0,0.16756662]
[1673662672594,0.71200936,20910.0,20909.0,0.478262]
[1673662673085,0.71200936,20910.0,20909.0,0.678262]
[1673662673808,0.71200936,20910.0,20909.0,0.66356458]
[1673662674067,0.04617717,20910.0,20909.0,0.66356458]
[1673662674316,0.04617717,20910.0,20909.0,0.9101617]
[1673662674569,2.51470798,20917.0,20910.0,0.2]
[1673662674825,2.51470798,20917.0,20912.0,1.434576]
[1673662675084,2.51470798,20917.0,20913.0,0.35300384]
[1673662675333,0.23938021,20917.0,20914.0,2.1715273]
[1673662675573,0.24604868,20917.0,20916.0,0.1144]
[1673662675818,0.24604868,20917.0,20916.0,1.54380208]
[1673662677065,0.24604868,20917.0,20916.0,0.956204]
[1673662677344,0.24604868,20917.0,20916.0,1.434306]
[1673662677605,0.24104868,20917.0,20916.0,1.64746554]
[1673662678105,0.21770396,20917.0,20916.0,1.64746554]
[1673662678353,0.02802257,20917.0,20916.0,1.64746554]
[1673662678599,0.98514842,20919.0,20916.0,1.64746554]
[1673662678846,0.94662842,20919.0,20917.0,0.2]
[1673662679090,0.94100842,20919.0,20918.0,1.14086055]
[1673662679630,0.8931722,20919.0,20918.0,1.14086055]
[1673662680092,0.79750466,20919.0,20918.0,1.14086055]
[1673662680336,0.79750466,20919.0,20918.0,1.18483135]
[1673662680583,0.70239337,20919.0,20918.0,1.14086055]
[1673662680836,0.89321403,20919.0,20918.0,0.03946205]
[1673662681093,1.10015213,20919.0,20916.0,0.04051142]
[1673662681382,0.70248808,20919.0,20916.0,0.51884618]
[1673662681623,0.70239337,20919.0,20917.0,0.09969672]
[1673662681854,0.70239337,20919.0,20918.0,1.156114]
[1673662682353,0.19641388,20919.0,20918.0,1.19686218]
[1673662682585,0.19641388,20919.0,20918.0,1.38138279]
[1673662682824,0.00806571,20926.0,20919.0,0.2]
[1673662683082,0.00806571,20926.0,20921.0,1.433958]
[1673662683322,0.00806571,20926.0,20922.0,0.34700226]
[1673662683552,0.00806571,20926.0,20921.0,2.38914769]
[1673662683553,0.0001,20930.0,20923.0,2.45814996]
[1673662683806,0.0001,20930.0,20925.0,0.2]
[1673662684039,0.0001,20930.0,20926.0,2.25787867]
[1673662684279,0.0001,20930.0,20927.0,1.42573815]
[1673662684530,0.0001,20930.0,20928.0,1.47360587]
[1673662684774,0.26165368,20935.0,20928.0,1.47360587]
[1673662684775,0.22564758,20935.0,20929.0,0.67720169]
[1673662685019,0.26568612,20936.0,20930.0,1.66140077]
[1673662685269,0.18814062,20932.0,20930.0,0.99627618]
[1673662685505,0.19072595,20936.0,20930.0,0.00097315]
[1673662685738,0.20281849,20935.0,20931.0,0.07809202]
[1673662686025,0.23664643,20939.0,20932.0,0.99621518]
[1673662686310,0.23248728,20938.0,20933.0,0.1403697]
[1673662686528,2.0,20940.0,20934.0,0.51842918]
[1673662686753,2.0,20940.0,20936.0,0.2]
[1673662686994,2.0,20940.0,20937.0,0.51836618]
[1673662687249,1.35752841,20940.0,20938.0,0.1603472]
[1673662687488,1.35752841,20940.0,20939.0,0.99590218]
[1673662687734,1.35752841,20940.0,20939.0,0.955154]
[1673662688211,1.18059753,20940.0,20939.0,1.00657429]
[1673662688462,1.03683162,20940.0,20939.0,1.14022776]
[1673662688955,1.03683162,20940.0,20939.0,1.08777133]
[1673662689187,0.99280603,20940.0,20939.0,1.08777133]
[1673662689666,0.99280603,20940.0,20939.0,1.56497302]
[1673662689900,0.98710603,20940.0,20939.0,1.76497302]
[1673662690165,1.18143535,20942.0,20940.0,1.16304325]
[1673662690413,0.00917164,20945.0,20942.0,0.2]
[1673662690647,0.00917164,20945.0,20943.0,2.12778209]
[1673662690905,0.00917164,20945.0,20944.0,1.08870283]
[1673662691138,0.00917164,20945.0,20944.0,1.677463]
[1673662691388,0.00917164,20945.0,20944.0,1.15466469]
[1673662692380,0.00917164,20945.0,20944.0,0.677463]
[1673662692612,0.00917164,20945.0,20944.0,0.90674869]
[1673662692869,0.00917164,20945.0,20944.0,0.91098018]
[1673662693370,0.00917164,20945.0,20944.0,0.90598018]
[1673662693951,0.24240759,20945.0,20942.0,0.2]
[1673662694157,0.19072595,20944.0,20940.0,0.2371823]
[1673662694402,0.00917164,20945.0,20940.0,0.0009657]
[1673662694403,0.19072595,20943.0,20940.0,0.0009657]
[1673662694881,0.19082066,20942.0,20940.0,0.0009657]
[1673662695117,0.19072595,20942.0,20940.0,0.0009657]
[1673662695372,0.320865,20941.0,20935.0,0.23141879]
[1673662695603,0.40285895,20940.0,20937.0,0.00095662]
[1673662695847,0.32095971,20939.0,20937.0,0.00095662]
[1673662696110,0.212133,20938.0,20937.0,0.11622262]
[1673662696368,0.19072595,20942.0,20937.0,0.24569319]
[1673662696602,0.25702185,20941.0,20938.0,0.07648336]
[1673662696839,0.2,20943.0,20938.0,0.07648336]
[1673662697098,0.00917164,20945.0,20939.0,0.1736948]
[1673662697341,0.00917164,20945.0,20940.0,0.7195251]
[1673662697584,0.00917164,20945.0,20941.0,0.1736948]
[1673662697826,0.00917164,20945.0,20942.0,0.3736948]
[1673662698068,0.00917164,20945.0,20942.0,0.8511818]
[1673662698309,0.00917164,20945.0,20942.0,1.3286908]
[1673662698542,0.00917164,20945.0,20943.0,0.24062821]
[1673662698804,0.24284472,20943.0,20940.0,0.06925575]
[1673662699052,0.00917164,20945.0,20941.0,0.0503928]
[1673662699284,0.00917164,20945.0,20942.0,0.477504]
[1673662699546,0.00917164,20945.0,20943.0,0.27423618]
[1673662699791,0.00917164,20945.0,20944.0,2.10959069]
[1673662700028,0.00917164,20945.0,20944.0,2.28328549]
[1673662700326,0.00917164,20949.0,20944.0,2.69201351]
[1673662700567,0.00917164,20949.0,20946.0,0.2387]
[1673662700813,0.00917164,20949.0,20947.0,2.99550971]